bitfinex/quotes_SOLUSD_20250823
["timestamp","ask_amount","ask_price","bid_price","bid_amount"]
[1755965674254,2.734967,202.82,202.81,1e-08]
[1755965674626,14.6909447,202.82,202.81,1e-08]
[1755965675639,19.62142492,202.82,202.81,1e-08]
[1755965676953,13.9909447,202.82,202.81,1e-08]
[1755965677934,2.034967,202.82,202.81,0.70000001]
[1755965678138,2.034967,202.82,202.81,1e-08]
[1755965679652,2.734967,202.82,202.81,1e-08]
[1755965680030,2.034967,202.82,202.81,1e-08]
[1755965680539,14.6909447,202.82,202.81,1e-08]
[1755965680963,13.9909447,202.82,202.81,1e-08]
[1755965684768,2.034967,202.82,202.81,0.70000001]
[1755965684942,0.06,202.82,202.81,0.70000001]
[1755965686746,0.06,202.82,202.81,5.63072334]
[1755965687658,0.06,202.85,202.82,13.59559401]
[1755965687856,0.06,202.85,202.84,13.59559401]
[1755965688080,0.06,202.85,202.84,25.55157171]
[1755965688377,0.06,202.85,202.84,26.25157171]
[1755965688573,2.034675,202.85,202.84,22.22657181]
[1755965688981,0.06,202.85,202.84,34.18254951]
[1755965692163,0.06,202.85,202.84,22.22657181]
[1755965692358,0.06,202.85,202.84,3.00098372]
[1755965692560,0.06,202.85,202.82,17.58627624]
[1755965692776,0.06,202.85,202.83,3.04592705]
[1755965692980,0.06,202.85,202.83,0.7]
[1755965693581,0.06,202.85,202.84,12.6559777]
[1755965693760,0.06,202.85,202.84,0.7]
[1755965694267,0.06,202.85,202.83,11.9559777]
[1755965694490,0.06,202.85,202.83,16.88606402]
[1755965694783,0.06,202.85,202.83,17.58606402]
[1755965695155,0.06,202.85,202.84,0.7]
[1755965697389,0.06,202.85,202.84,5.62999408]
[1755965700570,0.06,202.85,202.84,17.58597178]
[1755965701688,0.06,202.85,202.84,16.88597178]
[1755965701993,0.06,202.85,202.83,17.60611282]
[1755965702189,0.66,202.84,202.81,1e-08]
[1755965702397,11.9559777,202.82,202.81,1e-08]
[1755965702688,11.9559777,202.83,202.81,1e-08]
[1755965702895,0.66,202.82,202.81,1e-08]
[1755965703206,2.034773,202.85,202.81,1e-08]
[1755965703372,12.6759777,202.85,202.81,1e-08]
[1755965703561,0.66,202.84,202.81,1e-08]
[1755965703771,0.66,202.84,202.81,4.93069991]
[1755965703983,0.06,202.85,202.83,11.9559777]
[1755965704181,0.06,202.85,202.84,5.64999408]
[1755965704389,0.06,202.85,202.84,17.60597178]
[1755965704982,0.06,202.85,202.84,31.20156579]
[1755965705373,0.06,202.85,202.84,34.24513363]
[1755965705579,1e-08,202.85,202.84,34.52945677]
[1755965705816,1e-08,202.85,202.84,35.02245617]
[1755965706796,1e-08,202.85,202.84,22.28915593]
[1755965707091,1e-08,202.85,202.84,34.24513363]
[1755965708189,1e-08,202.85,202.84,34.52945677]
[1755965708803,1e-08,202.85,202.84,35.02245617]
[1755965709899,0.06,202.88,202.87,13.59559401]
[1755965710103,0.06,202.88,202.87,17.13208835]
[1755965710401,0.06,202.88,202.87,3.04356784]
[1755965710402,0.72,202.88,202.87,3.04356784]
[1755965710578,0.72,202.88,202.86,30.48083731]
[1755965710780,0.06,202.88,202.86,30.48083731]
[1755965710988,0.66,202.87,202.85,4.92974742]
[1755965711276,0.66,202.86,202.84,13.59559401]
[1755965711584,0.06,202.88,202.84,13.59559401]
[1755965711798,0.66,202.86,202.84,13.59559401]
[1755965711985,0.06,202.88,202.85,12.6759777]
[1755965712204,0.06,202.88,202.86,11.9559777]
[1755965712714,0.06,202.88,202.87,4.92926504]
[1755965712922,0.06,202.88,202.87,17.60524274]
[1755965713104,0.06,202.88,202.87,31.20083675]
[1755965713519,0.06,202.88,202.87,30.48083675]
[1755965713822,0.06,202.88,202.87,31.20083675]
[1755965714492,0.06,202.88,202.87,19.24485905]
[1755965714693,0.06,202.88,202.87,18.52485905]
[1755965714890,0.06,202.88,202.87,30.48083675]
[1755965715315,0.06,202.88,202.87,4.92926504]
[1755965717509,0.06,202.88,202.87,31.20083675]
[1755965717818,0.06,202.88,202.87,69.58515989]
[1755965718120,0.06,202.88,202.87,70.07808639]
[1755965718418,0.06,202.9,202.88,13.87991715]
[1755965718599,0.06,202.9,202.89,11.9559777]
[1755965718804,0.06,202.9,202.89,12.6759777]
[1755965719008,0.06,202.9,202.89,27.04877276]
[1755965719323,0.06,202.91,202.9,18.80845337]
[1755965719520,0.06,202.91,202.9,18.52413023]
[1755965719703,0.06,202.91,202.9,68.58010793]
[1755965720699,0.06,202.91,202.9,57.34413023]
[1755965721023,0.06,202.91,202.9,68.58010793]
[1755965721930,0.06,202.91,202.9,69.30010793]
[1755965724223,0.06,202.91,202.9,57.34413023]
[1755965724406,0.06,202.91,202.9,69.30010793]
[1755965726223,0.06,202.91,202.9,69.58443107]
[1755965726428,0.06,202.91,202.9,70.07728469]
[1755965729223,1e-08,202.92,202.9,70.07728469]
[1755965729411,0.06,202.95,202.92,13.87991715]
[1755965729611,0.06,202.95,202.94,25.83589485]
[1755965730125,0.06,203.01,202.96,0.28432314]
[1755965730319,0.06,203.01,202.96,64.01589485]
[1755965730527,0.06,203.01,202.96,64.67589485]
[1755965730845,0.66,203.0,202.96,68.94297407]
[1755965731137,0.06,203.01,202.96,68.94297407]
[1755965731138,0.06,203.01,202.96,56.98699637]
[1755965731447,0.66,203.0,202.96,56.98699637]
[1755965731812,0.66,203.0,202.96,18.80699637]
[1755965732015,0.72,202.97,202.93,1.972727]
[1755965732223,0.72,202.97,202.9,12.32116615]
[1755965732224,0.72,202.96,202.91,13.73775558]
[1755965732434,0.06,202.96,202.95,13.59559401]
[1755965732946,0.72,202.96,202.95,51.79559401]
[1755965733243,0.72,202.96,202.92,11.9559777]
[1755965733442,0.72,202.96,202.91,25.55157171]
[1755965733653,0.72,202.96,202.93,38.2]
[1755965734248,0.72,202.96,202.91,68.67986504]
[1755965735328,0.66,202.95,202.91,68.67986504]
[1755965735530,0.66,202.95,202.91,69.33986504]
[1755965736322,0.66,202.95,202.91,57.38388734]
[1755965736655,0.66,202.95,202.91,69.33986504]
[1755965736837,0.06,202.96,202.91,69.33986504]
[1755965736838,0.66,202.94,202.91,68.67986504]
[1755965737038,0.66,202.93,202.91,68.67986504]
[1755965737658,0.66,202.93,202.89,0.66]
[1755965737659,0.66,202.92,202.89,13.59559401]
[1755965737861,0.66,202.91,202.9,51.77559401]
[1755965738159,0.66,202.94,202.9,63.73157171]
[1755965738331,0.66,202.93,202.91,0.03]
[1755965739430,0.66,202.93,202.91,4.95829333]
[1755965741760,0.66,202.94,202.91,4.95829333]
[1755965741958,0.66,202.94,202.91,16.91427103]
[1755965742256,0.66,202.94,202.91,4.95829333]
[1755965742633,0.06,202.96,202.91,4.95829333]
[1755965742634,0.66,202.93,202.91,4.95829333]
[1755965742828,0.66,202.92,202.91,0.03]
[1755965744760,0.66,202.94,202.91,0.03]
[1755965745265,11.9559777,202.93,202.91,0.03]
[1755965745635,12.6159777,202.94,202.91,0.03]
[1755965745953,0.66,202.94,202.91,0.03]
[1755965746250,11.9559777,202.95,202.91,0.03]
[1755965746429,11.9559777,202.95,202.91,0.69]
[1755965746629,11.9559777,202.95,202.91,0.03]
[1755965746830,0.66,202.94,202.91,0.03]
[1755965747959,11.9559777,202.95,202.91,0.69]
[1755965748142,11.9559777,202.95,202.91,0.03]
[1755965748343,0.66,202.94,202.91,0.03]
[1755965749577,0.06,202.96,202.91,0.03]
[1755965749873,0.06,202.96,202.92,38.84]
[1755965750057,0.72,202.96,202.92,38.84]
[1755965750549,0.72,202.96,202.93,4.92780761]
[1755965751171,0.06,202.96,202.93,4.92780761]
[1755965751467,0.06,202.96,202.94,64.39157171]
[1755965751673,0.06,202.96,202.94,52.43559401]
[1755965751880,0.06,202.96,202.94,64.39157171]
[1755965752174,0.06,202.96,202.94,52.43559401]
[1755965753065,0.06,202.96,202.95,18.52291601]
[1755965753267,0.06,202.96,202.95,19.18291601]
[1755965753859,0.06,202.96,202.95,31.13889371]
[1755965754067,0.06,202.96,202.95,31.42321685]
[1755965754264,0.06,202.96,202.95,19.46723915]
[1755965754462,0.06,202.96,202.95,31.42321685]
[1755965759383,0.06,202.99,202.96,13.87991715]
[1755965759674,0.06,202.99,202.98,25.83589485]
[1755965760194,0.06,202.99,202.98,14.56991715]
[1755965760372,0.06,202.99,202.98,26.52589485]
[1755965761073,0.06,202.99,202.98,31.4524886]
[1755965761375,0.06,203.01,202.98,31.4524886]
[1755965761554,0.06,203.01,203.0,25.83589485]
[1755965761957,0.06,203.01,203.0,26.52589485]
[1755965762173,0.06,203.02,203.0,26.52589485]
[1755965762372,0.2,203.03,203.02,39.59559401]
[1755965762584,0.2,203.03,203.02,51.55157171]
[1755965762783,0.2,203.03,203.02,52.24157171]
[1755965763091,0.2,203.03,203.02,57.1671948]
[1755965763591,1e-08,203.03,203.02,57.45151794]
[1755965763792,1e-08,203.03,203.02,59.42327294]
[1755965768781,1e-08,203.03,203.02,97.56327294]
[1755965769567,1e-08,203.03,203.02,58.73327294]
[1755965769883,1e-08,203.03,203.02,94.6171948]
[1755965770292,1e-08,203.03,203.02,82.80337867]
[1755965770478,0.69000001,203.03,203.02,51.73559401]
[1755965770878,0.69000001,203.03,203.02,56.6612171]
[1755965771487,0.69000001,203.03,203.02,18.5212171]
[1755965771684,0.69000001,203.03,203.02,56.6812171]
[1755965772983,1e-08,203.03,203.02,56.6812171]
[1755965773199,1e-08,203.03,203.02,68.6371948]
[1755965773889,1e-08,203.03,203.02,69.61151794]
[1755965774999,1e-08,203.03,203.02,69.63151794]
[1755965775386,1e-08,203.03,203.02,18.80554024]
[1755965775598,0.69000001,203.03,203.02,18.5212171]
[1755965775791,0.69000001,203.03,203.02,56.7412171]
[1755965776999,1e-08,203.03,203.02,56.7412171]
[1755965777179,0.69000001,203.03,203.02,56.7412171]
[1755965777380,1e-08,203.03,203.02,56.7412171]
[1755965777778,1e-08,203.03,203.02,69.67151794]
[1755965777982,1e-08,203.03,203.02,57.02554024]
[1755965778210,1e-08,203.03,203.02,68.98151794]
[1755965780196,0.69000001,203.03,203.02,57.02554024]
[1755965780390,0.69000001,203.03,203.02,56.7412171]
[1755965780704,0.69000001,203.03,203.02,51.81559401]
[1755965781289,0.69000001,203.03,203.02,56.7412171]
[1755965782516,1e-08,203.03,203.02,56.7412171]
[1755965782890,0.69000001,203.03,203.02,56.7412171]
[1755965784392,0.69000001,203.03,203.02,13.59559401]
[1755965784598,12.64597771,203.03,203.02,38.22]
[1755965784814,12.64597771,203.03,203.01,38.22]
[1755965785124,0.69,203.02,203.01,51.81559401]
[1755965785327,12.6459777,203.02,203.0,0.03]
[1755965785497,11.9559777,203.01,203.0,38.25]
[1755965785699,12.6459777,203.01,203.0,0.03]
[1755965786917,0.69,203.01,203.0,0.03]
[1755965787214,12.6459777,203.01,203.0,0.03]
[1755965789827,11.9559777,203.01,203.0,0.03]
[1755965790123,1e-08,203.03,203.0,26.24157171]
[1755965790498,1e-08,203.03,203.02,13.59559401]
[1755965790898,1e-08,203.03,203.02,51.81559401]
[1755965791425,1e-08,203.03,203.02,64.43157171]
[1755965791923,1e-08,203.03,203.02,64.71589485]
[1755965792340,0.54000001,203.09,203.02,64.71589485]
[1755965792524,47.82374164,203.2,203.06,25.55157171]
[1755965792726,11.9559777,203.13,203.08,13.59559401]
[1755965793121,40.44146298,203.2,203.1,13.59559401]
[1755965793319,11.9559777,203.15,203.1,13.59559401]
[1755965793637,11.9559777,203.16,203.1,51.85559401]
[1755965793835,11.9559777,203.14,203.1,51.85559401]
[1755965794041,12.0159777,203.14,203.1,51.85559401]
[1755965795049,0.06,203.14,203.1,56.77927692]
[1755965795216,0.06,203.14,203.1,69.39525462]
[1755965795416,0.06,203.14,203.1,57.43927692]
[1755965797033,0.06,203.14,203.1,69.39525462]
[1755965797237,0.06,203.14,203.1,57.43927692]
[1755965797423,0.78,203.14,203.1,51.85559401]
[1755965797626,0.78,203.14,203.1,52.51559401]
[1755965798749,0.78,203.14,203.1,57.43927692]
[1755965799047,0.06,203.14,203.1,69.39525462]
[1755965801161,0.06,203.14,203.1,69.67957776]
[1755965801976,0.06,203.14,203.1,57.72360006]
[1755965802143,0.06,203.14,203.1,69.67957776]
[1755965809598,0.06,203.14,203.11,0.28432314]
[1755965809777,0.06,203.14,203.13,51.55157171]
[1755965809972,0.06,203.14,203.13,52.21157171]
[1755965810304,0.06,203.14,203.13,57.13452745]
[1755965811401,0.78,203.14,203.13,13.87991715]
[1755965811572,0.06,203.14,203.13,64.01589485]
[1755965812670,0.06,203.14,203.13,68.93885059]
[1755965812898,0.06,203.14,203.13,69.59885059]
[1755965813977,0.06,203.14,203.13,68.93885059]
[1755965815299,0.06,203.14,203.13,56.98287289]
[1755965816286,0.06,203.14,203.13,18.80287289]
[1755965816472,0.06,203.14,203.13,51.77559401]
[1755965816868,0.78,203.14,203.13,13.59559401]
[1755965817073,0.78,203.14,203.13,51.75559401]
[1755965817401,0.06,203.14,203.13,56.67854975]
[1755965817772,0.76,203.14,203.13,13.59559401]
[1755965817971,0.76,203.14,203.13,51.77559401]
[1755965819209,12.7159777,203.14,203.12,38.18]
[1755965819515,0.7,203.13,203.12,38.18]
[1755965819677,0.7,203.13,203.1,13.59559401]
[1755965819880,0.7,203.12,203.11,51.77559401]
[1755965820677,0.06,203.14,203.12,13.59559401]
[1755965821018,0.06,203.14,203.13,52.43559401]
[1755965821780,0.06,203.14,203.13,51.77559401]
[1755965822396,12.7159777,203.14,203.13,38.16]
[1755965822700,12.7159777,203.14,203.12,38.16]
[1755965822901,0.7,203.13,203.12,51.75559401]
[1755965823128,12.6559777,203.13,203.12,38.16]
[1755965823327,12.6559777,203.13,203.09,13.59559401]
[1755965823523,12.6559777,203.12,203.1,38.16]
[1755965823820,0.7,203.11,203.1,51.75559401]
[1755965825431,12.6559777,203.11,203.06,13.59559401]
[1755965825637,11.9559777,203.1,203.07,38.16]
[1755965826039,0.06,203.14,203.07,38.16]
[1755965826040,12.6559777,203.09,203.07,38.16]
[1755965826207,12.6559777,203.08,203.04,0.03]
[1755965826403,12.6559777,203.08,203.05,38.2]
[1755965826628,0.7,203.08,203.05,51.79559401]
[1755965827421,11.9559777,203.09,203.05,56.72031746]
[1755965827617,12.6559777,203.08,203.05,51.79559401]
[1755965827926,11.9559777,203.08,203.05,51.79559401]
[1755965828307,11.9559777,203.08,203.05,56.72041935]
[1755965828513,11.9559777,203.08,203.05,57.38041935]
[1755965828911,0.7,203.13,203.07,13.59559401]
[1755965829111,12.6559777,203.13,203.08,38.22]
[1755965829311,12.6559777,203.13,203.09,4.92392535]
[1755965829519,11.9559777,203.12,203.09,4.92392535]
[1755965830110,11.9559777,203.13,203.1,13.59559401]
[1755965830312,12.0159777,203.14,203.1,52.47559401]
[1755965830713,0.06,203.14,203.1,51.81559401]
[1755965831028,0.06,203.14,203.1,52.47559401]
[1755965831227,0.06,203.14,203.11,0.66]
[1755965831740,0.06,203.14,203.12,4.9231981]
[1755965832534,0.06,203.14,203.13,14.25559401]
[1755965832907,0.06,203.14,203.13,26.49589485]
[1755965833416,0.06,203.14,203.13,28.46677485]
[1755965833826,0.06,203.14,203.13,21.43375289]
[1755965834438,0.06,203.14,203.13,19.46287289]
[1755965834818,0.06,203.14,203.13,31.41885059]
[1755965836139,0.06,203.16,203.14,0.28432314]
[1755965836431,0.06,203.16,203.15,64.41157171]
[1755965836821,0.06,203.16,203.15,76.36754971]
[1755965837219,0.06,203.16,203.15,76.65187285]
[1755965838320,0.06,203.16,203.15,81.57434393]
[1755965838715,0.06,203.16,203.15,84.56442903]
[1755965840328,0.06,203.16,203.15,84.54442903]
[1755965840519,0.06,203.16,203.15,81.55434393]
[1755965841939,7.7159777,203.27,203.16,13.87991715]
[1755965842142,7.7159777,203.27,203.22,13.59559401]
[1755965842332,7.7159777,203.27,203.22,51.75559401]
[1755965842919,11.9559777,203.28,203.22,69.29211292]
[1755965843141,11.9559777,203.29,203.24,13.59559401]
[1755965843440,11.9559777,203.29,203.24,51.75559401]
[1755965844239,12.4859777,203.28,203.24,51.75559401]
[1755965844421,12.4859777,203.28,203.2,11.955977]
[1755965844422,0.53,203.27,203.25,38.18]
[1755965844817,0.53,203.27,203.24,38.18]
[1755965845142,11.9559777,203.28,203.24,38.18]
[1755965845444,14.775778,203.33,203.28,13.59559401]
[1755965845445,12.4859777,203.33,203.28,13.59559401]
[1755965845743,12.4859777,203.33,203.29,0.28432314]
[1755965845925,0.53,203.33,203.29,0.28432314]
[1755965846125,0.53,203.33,203.29,15.05500814]
[1755965847720,12.4859777,203.33,203.29,15.05500814]
[1755965848735,11.9559777,203.32,203.29,15.05500814]
[1755965848936,11.9559777,203.3,203.25,39.14]
[1755965849129,11.9559777,203.29,203.26,13.59559401]
[1755965849335,11.9559777,203.3,203.26,13.59559401]
[1755965849732,11.9559777,203.29,203.26,13.59559401]
[1755965849923,0.53,203.32,203.26,14.27559401]
[1755965850126,11.9559777,203.29,203.26,13.59559401]
[1755965850646,11.9559777,203.3,203.26,13.59559401]
[1755965851046,11.9559777,203.31,203.26,18.51529599]
[1755965851236,11.9559777,203.3,203.26,19.19529599]
[1755965852029,11.9559777,203.29,203.26,13.59559401]
[1755965853030,0.53,203.32,203.26,18.5153658]
[1755965853230,11.9559777,203.3,203.26,18.5153658]
[1755965853651,11.9559777,203.29,203.26,13.59559401]
[1755965854659,12.0159777,203.29,203.26,13.59559401]
[1755965855244,0.06,203.29,203.26,13.59559401]
[1755965855561,12.0159777,203.29,203.26,13.59559401]
[1755965856355,12.0159777,203.29,203.26,18.51535685]
[1755965856564,0.06,203.29,203.27,0.68]
[1755965860065,0.06,203.29,203.27,5.59951986]
[1755965860365,0.06,203.29,203.27,4.91951986]
[1755965860574,0.06,203.29,203.28,14.27559401]
[1755965860867,15.304322,203.37,203.28,41.28803385]
[1755965860868,26.7302997,203.37,203.28,41.28803385]
[1755965861069,11.9559777,203.36,203.31,13.87991715]
[1755965861246,11.9559777,203.36,203.33,13.59559401]
[1755965862240,11.9559777,203.36,203.31,18.7984216]
[1755965862457,11.9559777,203.36,203.33,0.68]
[1755965862779,11.9559777,203.36,203.31,19.4784216]
[1755965862973,11.9559777,203.36,203.33,0.68]
[1755965863169,12.5459777,203.36,203.31,14.55991715]
[1755965863376,11.9559777,203.37,203.32,14.27559401]
[1755965863589,11.9559777,203.36,203.32,14.27559401]
[1755965863881,11.9559777,203.34,203.32,13.59559401]
[1755965864090,11.9559777,203.35,203.32,13.59559401]
[1755965864581,11.9559777,203.35,203.32,14.27559401]
[1755965864955,11.9559777,203.35,203.32,13.59559401]
[1755965865885,11.9559777,203.35,203.32,14.27559401]
[1755965866556,0.59,203.38,203.31,13.59559401]
[1755965866557,11.9559777,203.34,203.31,13.59559401]
[1755965867366,11.9559777,203.34,203.32,0.68]
[1755965867960,11.9559777,203.35,203.32,0.68]
[1755965868457,11.9559777,203.34,203.32,0.68]
[1755965869983,11.9559777,203.34,203.32,5.59832034]
[1755965870988,11.9559777,203.34,203.32,0.68]
[1755965871164,12.0159777,203.34,203.32,0.68]
[1755965871364,0.06,203.34,203.31,30.4701035]
[1755965871566,12.0159777,203.34,203.33,14.27559401]
[1755965872292,12.0159777,203.34,203.33,13.59559401]
[1755965872957,12.6059777,203.34,203.29,0.03]
[1755965873184,0.65,203.34,203.29,14.30559401]
[1755965873456,11.9559777,203.31,203.29,14.30559401]
[1755965874076,11.9559777,203.32,203.3,0.68]
[1755965874284,0.06,203.34,203.31,13.59559401]
[1755965874485,11.9559777,203.32,203.31,13.59559401]
[1755965875957,0.06,203.34,203.31,13.59559401]
[1755965876373,11.9559777,203.32,203.31,14.27559401]
[1755965876782,11.9559777,203.32,203.31,13.59559401]
[1755965877190,0.06,203.34,203.31,13.59559401]
[1755965877384,11.9559777,203.32,203.31,13.59559401]
[1755965878870,17.46437061,203.32,203.29,0.03]
[1755965879070,11.9559777,203.3,203.29,0.03]
[1755965880471,12.5459777,203.3,203.29,0.03]
[1755965880678,11.9559777,203.3,203.29,0.03]
[1755965881770,12.5459777,203.3,203.29,0.03]
[1755965881971,17.46481685,203.3,203.29,0.03]
[1755965885881,12.5459777,203.3,203.29,0.03]
[1755965886084,64.46,203.33,203.29,0.03]
[1755965886291,11.9559777,203.3,203.29,0.03]
[1755965887899,11.9559777,203.31,203.29,0.73]
[1755965888103,11.9559777,203.31,203.29,0.03]
[1755965888293,26.0,203.33,203.3,0.7]
[1755965888495,11.9559777,203.31,203.29,0.03]
[1755965888698,11.9559777,203.3,203.29,0.03]
[1755965889400,11.9559777,203.3,203.29,0.73]
[1755965891306,11.9559777,203.31,203.29,0.73]
[1755965891801,11.9559777,203.31,203.29,0.03]
[1755965892002,11.9559777,203.31,203.3,0.7]
[1755965892605,38.5,203.34,203.3,0.7]
[1755965892807,11.9559777,203.31,203.3,0.7]
[1755965893710,11.9559777,203.31,203.29,0.03]
[1755965894185,11.9559777,203.3,203.29,0.03]
[1755965894984,0.59,203.33,203.29,0.03]
[1755965895180,11.9559777,203.3,203.29,0.03]
[1755965896490,12.5459777,203.3,203.29,0.03]
[1755965897824,11.9559777,203.3,203.29,0.03]
[1755965898687,12.5459777,203.3,203.29,0.03]
[1755965898909,11.9559777,203.3,203.29,0.03]
[1755965900984,43.31869208,203.31,203.29,0.03]
[1755965901331,11.9559777,203.3,203.29,0.03]
[1755965901686,38.4,203.31,203.29,0.03]
[1755965901886,11.9559777,203.3,203.29,0.03]
[1755965903012,11.9559777,203.3,203.29,0.73]
[1755965903816,11.9559777,203.3,203.29,0.03]
[1755965903994,11.9559777,203.3,203.29,0.73]
[1755965904199,11.9559777,203.3,203.29,0.03]
[1755965904798,0.06,203.34,203.29,0.73]
[1755965905017,0.06,203.34,203.3,13.59559401]
[1755965905240,12.0159777,203.34,203.31,0.7]
[1755965905420,11.9559777,203.33,203.32,0.7]
[1755965905824,11.9559777,203.33,203.3,0.7]
[1755965906149,11.9559777,203.33,203.31,0.7]
[1755965906431,11.9559777,203.33,203.32,0.7]
[1755965906805,11.9559777,203.33,203.29,0.03]
[1755965907007,11.9559777,203.32,203.29,0.03]
[1755965907226,0.06,203.34,203.29,0.73]
[1755965907438,11.9559777,203.32,203.29,0.73]
[1755965907631,11.9559777,203.3,203.29,0.03]
[1755965908431,12.5459777,203.3,203.29,0.03]
[1755965908844,17.46481685,203.3,203.29,0.03]
[1755965909945,26.0,203.27,203.24,0.03]
[1755965910141,11.9559777,203.25,203.24,0.03]
[1755965911842,17.4660269,203.25,203.24,0.03]
[1755965912652,17.4660269,203.25,203.21,0.03]
[1755965912830,11.9559777,203.22,203.21,0.03]
[1755965913034,50.3359777,203.22,203.21,0.03]
[1755965913487,0.59,203.27,203.21,0.72]
[1755965913641,11.9559777,203.22,203.21,0.72]
[1755965914857,11.9559777,203.24,203.21,5.64097595]
[1755965915057,11.9559777,203.24,203.22,0.69]
[1755965915475,50.3559777,203.26,203.22,0.69]
[1755965915847,11.9559777,203.25,203.22,0.69]
[1755965916347,11.9559777,203.25,203.22,5.61061189]
[1755965916546,11.9559777,203.25,203.23,0.69]
[1755965917163,64.4,203.28,203.22,0.69]
[1755965917164,11.9559777,203.24,203.22,0.69]
[1755965917354,11.9559777,203.23,203.22,0.69]
[1755965918456,11.9559777,203.24,203.22,0.69]
[1755965919467,11.9559777,203.25,203.23,0.69]
[1755965920572,12.0159777,203.25,203.22,0.03]
[1755965920869,12.0159777,203.25,203.23,0.69]
[1755965921445,0.06,203.25,203.24,0.69]
[1755965922441,0.06,203.25,203.24,5.61029128]
[1755965923461,0.06,203.25,203.24,8.6376736]
[1755965928291,0.06,203.25,203.24,22.51759075]
[1755965928975,0.06,203.25,203.24,34.47356845]
[1755965931788,0.06,203.25,203.24,72.79356845]
[1755965932285,0.06,203.25,203.24,69.76618613]
[1755965932464,0.06,203.25,203.24,72.80522252]
[1755965932880,0.06,203.25,203.24,72.80520191]
[1755965934759,0.06,203.25,203.24,60.84922421]
[1755965934964,0.06,203.25,203.24,22.52922421]
[1755965935177,0.06,203.25,203.24,72.76520191]
[1755965935683,0.06,203.25,203.24,3.03901578]
[1755965935866,0.06,203.25,203.23,18.80039652]
[1755965936063,0.06,203.25,203.24,3.03953433]
[1755965936270,0.06,203.25,203.23,13.59559401]
[1755965937364,0.06,203.25,203.24,0.03]
[1755965938017,0.06,203.25,203.24,3.74969036]
[1755965938391,0.06,203.25,203.24,17.34528437]
[1755965938911,0.06,203.25,203.24,17.62960751]
[1755965939098,0.06,203.25,203.24,22.54989879]
[1755965940093,0.06,203.25,203.24,16.66528437]
[1755965940406,0.06,203.25,203.24,13.62559401]
[1755965940603,0.06,203.25,203.24,21.58581829]
[1755965940812,0.06,203.25,203.24,22.26581829]
[1755965941207,0.06,203.25,203.24,19.22588529]
[1755965941512,0.06,203.25,203.24,22.26553802]
[1755965941808,0.06,203.25,203.24,19.22588529]
[1755965942011,0.06,203.25,203.24,22.26567146]
[1755965942502,0.06,203.25,203.24,22.5499946]
[1755965943311,0.06,203.25,203.24,34.5059723]
[1755965944721,0.06,203.25,203.24,72.7659723]
[1755965945618,0.06,203.25,203.24,60.8099946]
[1755965950424,0.06,203.25,203.24,21.8699946]
[1755965950624,0.06,203.25,203.24,51.84559401]
[1755965950928,0.06,203.25,203.24,13.62559401]
[1755965952318,12.6059777,203.25,203.24,0.03]
[1755965954926,12.0159777,203.25,203.24,0.03]
[1755965955132,0.06,203.25,203.24,0.03]
[1755965955618,12.0159777,203.25,203.24,0.03]
[1755965955810,0.06,203.25,203.24,0.03]
[1755965956011,12.0159777,203.25,203.24,0.03]
[1755965956224,0.06,203.25,203.24,0.03]
[1755965956514,12.0159777,203.25,203.24,0.03]
[1755965958933,12.6059777,203.25,203.24,0.03]
[1755965959118,17.5260269,203.25,203.24,0.03]
[1755965960139,26.0,203.23,203.22,0.03]
[1755965960326,37.9559777,203.23,203.22,0.03]
[1755965960730,38.5459777,203.23,203.22,0.03]
[1755965962012,43.46651108,203.23,203.22,0.03]
[1755965962337,43.46651108,203.23,203.21,0.03]
[1755965962634,11.9559777,203.2,203.19,0.03]